[Event "Titled Tuesday Blitz April 11 Early 2023"]
[White "Adithya A Chullikkad"]
[Black "Rom, Jasper"]
[WhiteFideId "45078734"]
[BlackFideId "2023733"]
[WhiteElo "1984"]
[BlackElo "2233"]
[Result "0-1"]
[Round "02"]
[TimeControl "180+2"]
[Date "2023.04.11"]
[WhiteClock "0:00:18"]
[BlackClock "0:00:12"]

1. d4 {[%clk 0:03:00]}  d5 {[%clk 0:02:57]} 2. Bf4 {[%clk 0:02:59]}  Nf6 {[%clk 0:02:55]} 3. e3 {[%clk 0:02:59]}  c5 {[%clk 0:02:55]} 4. c3 {[%clk 0:02:59]}  Nc6 {[%clk 0:02:54]} 5. Nd2 {[%clk 0:02:59]}  Bf5 {[%clk 0:02:50]} 6. Ngf3 {[%clk 0:02:58]}  e6 {[%clk 0:02:48]} 7. h3 {[%clk 0:02:57]}  h6 {[%clk 0:02:47]} 8. Be2 {[%clk 0:02:56]}  Qb6 {[%clk 0:02:47]} 9. Qc1 {[%clk 0:02:56]}  Rc8 {[%clk 0:02:45]} 10. O-O {[%clk 0:02:54]}  Be7 {[%clk 0:02:44]} 11. dxc5 {[%clk 0:02:52]}  Bxc5 {[%clk 0:02:43]} 12. Nb3 {[%clk 0:02:52]}  Be7 {[%clk 0:02:43]} 13. Nbd4 {[%clk 0:02:52]}  Be4 {[%clk 0:02:42]} 14. Nxc6 {[%clk 0:02:50]}  bxc6 {[%clk 0:02:39]} 15. Nd2 {[%clk 0:02:49]}  Bf5 {[%clk 0:02:38]} 16. g4 {[%clk 0:02:48]}  Bg6 {[%clk 0:02:37]} 17. Be5 {[%clk 0:02:46]}  O-O {[%clk 0:02:34]} 18. Kg2 {[%clk 0:02:44]}  Nd7 {[%clk 0:02:34]} 19. Bg3 {[%clk 0:02:44]}  e5 {[%clk 0:02:32]} 20. Nf3 {[%clk 0:02:43]}  f6 {[%clk 0:02:26]} 21. Nh4 {[%clk 0:02:42]}  Be4+ {[%clk 0:02:26]} 22. f3 {[%clk 0:02:42]}  Bh7 {[%clk 0:02:26]} 23. Nf5 {[%clk 0:02:41]}  Rfe8 {[%clk 0:02:02]} 24. Nxe7+ {[%clk 0:02:36]}  Rxe7 {[%clk 0:02:02]} 25. h4 {[%clk 0:02:30]}  Rb8 {[%clk 0:02:01]} 26. b4 {[%clk 0:02:30]}  c5 {[%clk 0:02:00]} 27. b5 {[%clk 0:02:29]}  c4 {[%clk 0:01:56]} 28. a4 {[%clk 0:02:26]}  Nc5 {[%clk 0:01:56]} 29. e4 {[%clk 0:02:26]}  Nb3 {[%clk 0:01:56]} 30. Qb2 {[%clk 0:02:22]}  Nxa1 {[%clk 0:01:56]} 31. exd5 {[%clk 0:02:23]}  Qc5 {[%clk 0:01:48]} 32. Rxa1 {[%clk 0:02:19]}  Qxd5 {[%clk 0:01:48]} 33. Rd1 {[%clk 0:02:18]}  Bd3 {[%clk 0:01:48]} 34. Bf2 {[%clk 0:01:16]}  Rd7 {[%clk 0:01:20]} 35. Rd2 {[%clk 0:01:06]}  e4 {[%clk 0:01:19]} 36. Bd1 {[%clk 0:01:04]}  Bf1+ {[%clk 0:01:15]} 37. Kxf1 {[%clk 0:01:03]}  Qxd2 {[%clk 0:01:15]} 38. Qxd2 {[%clk 0:01:03]}  Rxd2 {[%clk 0:01:15]} 39. Ke1 {[%clk 0:01:03]}  Rbd8 {[%clk 0:00:52]} 40. Be2 {[%clk 0:00:58]}  exf3 {[%clk 0:00:46]} 41. Bxf3 {[%clk 0:00:45]}  R2d7 {[%clk 0:00:45]} 42. Bc6 {[%clk 0:00:42]}  Re7+ {[%clk 0:00:45]} 43. Kf1 {[%clk 0:00:41]}  Rd1+ {[%clk 0:00:45]} 44. Kg2 {[%clk 0:00:41]}  Rd2 {[%clk 0:00:45]} 45. Kf3 {[%clk 0:00:26]}  Rd3+ {[%clk 0:00:45]} 46. Kf4 {[%clk 0:00:25]}  Rxc3 {[%clk 0:00:43]} 47. Bc5 {[%clk 0:00:25]}  Rc7 {[%clk 0:00:32]} 48. a5 {[%clk 0:00:25]}  Rc1 {[%clk 0:00:20]} 49. Bd6 {[%clk 0:00:23]}  Rc8 {[%clk 0:00:16]} 50. Bd5+ {[%clk 0:00:19]}  Kh8 {[%clk 0:00:14]} 51. b6 {[%clk 0:00:19]}  axb6 {[%clk 0:00:14]} 52. axb6 {[%clk 0:00:20]}  Rb1 {[%clk 0:00:14]} 53. b7 {[%clk 0:00:20]}  Rxb7 {[%clk 0:00:13]} 54. Bxb7 {[%clk 0:00:20]}  Rd8 {[%clk 0:00:14]} 55. Bb4 {[%clk 0:00:18]}  Rb8 {[%clk 0:00:12]} 0-1


[Site "https://www.chess.com"]

[Event "Titled Tuesday Blitz April 11 Early 2023"]
[White "mjelcic"]
[Black "Erzhanov, Arman"]
[BlackFideId "4138821"]
[WhiteElo "2236"]
[BlackElo "2138"]
[Result "1-0"]
[Round "02"]
[TimeControl "180+2"]
[Date "2023.04.11"]
[WhiteClock "0:00:37"]
[BlackClock "0:00:40"]

1. c4 {[%clk 0:03:00]}  d6 {[%clk 0:02:58]} 2. Nc3 {[%clk 0:02:59]}  e5 {[%clk 0:02:56]} 3. g3 {[%clk 0:02:59]}  g6 {[%clk 0:02:57]} 4. Bg2 {[%clk 0:02:59]}  Bg7 {[%clk 0:02:57]} 5. e4 {[%clk 0:02:58]}  Ne7 {[%clk 0:02:57]} 6. Nge2 {[%clk 0:02:58]}  O-O {[%clk 0:02:58]} 7. O-O {[%clk 0:02:58]}  f5 {[%clk 0:02:57]} 8. d3 {[%clk 0:02:56]}  Nbc6 {[%clk 0:02:55]} 9. f4 {[%clk 0:02:55]}  Be6 {[%clk 0:02:55]} 10. Be3 {[%clk 0:02:53]}  Qd7 {[%clk 0:02:54]} 11. Qd2 {[%clk 0:02:45]}  Rae8 {[%clk 0:02:54]} 12. Nd5 {[%clk 0:02:43]}  b6 {[%clk 0:02:44]} 13. Rae1 {[%clk 0:02:41]}  a5 {[%clk 0:02:44]} 14. b3 {[%clk 0:02:41]}  Kh8 {[%clk 0:02:43]} 15. Kh1 {[%clk 0:02:40]}  fxe4 {[%clk 0:02:36]} 16. dxe4 {[%clk 0:02:37]}  Bg4 {[%clk 0:02:31]} 17. Bf3 {[%clk 0:02:27]}  Bxf3+ {[%clk 0:02:29]} 18. Rxf3 {[%clk 0:02:27]}  exf4 {[%clk 0:02:23]} 19. gxf4 {[%clk 0:02:24]}  Ne5 {[%clk 0:02:23]} 20. Rff1 {[%clk 0:02:19]}  Qh3 {[%clk 0:02:08]} 21. Ng1 {[%clk 0:02:07]}  Qg4 {[%clk 0:01:45]} 22. Nxe7 {[%clk 0:01:36]}  Rxe7 {[%clk 0:01:42]} 23. h3 {[%clk 0:01:14]}  Qh4 {[%clk 0:01:41]} 24. fxe5 {[%clk 0:00:53]}  Rxf1 {[%clk 0:01:38]} 25. Rxf1 {[%clk 0:00:53]}  Qxe4+ {[%clk 0:01:38]} 26. Rf3 {[%clk 0:00:52]}  Bxe5 {[%clk 0:01:34]} 27. Bg5 {[%clk 0:00:45]}  Rf7 {[%clk 0:01:28]} 28. Qg2 {[%clk 0:00:45]}  Rf5 {[%clk 0:01:20]} 29. Rxf5 {[%clk 0:00:42]}  Qxf5 {[%clk 0:01:21]} 30. Bc1 {[%clk 0:00:40]}  Qb1 {[%clk 0:01:11]} 31. Bh6 {[%clk 0:00:37]}  Kg8 {[%clk 0:00:40]} 32. Qd5+ {[%clk 0:00:37]} 1-0


[Site "https://www.chess.com"]

[Event "Titled Tuesday Blitz April 11 Early 2023"]
[White "Sohier, Julien"]
[Black "Principe, Gerson"]
[WhiteFideId "645346"]
[BlackFideId "3804550"]
[WhiteElo "2209"]
[BlackElo "2229"]
[Result "0-1"]
[Round "02"]
[TimeControl "180+2"]
[Date "2023.04.11"]
[WhiteClock "0:02:00"]
[BlackClock "0:00:51"]

1. e4 {[%clk 0:03:00]}  c6 {[%clk 0:02:42]} 2. Nf3 {[%clk 0:03:00]}  d5 {[%clk 0:02:42]} 3. d3 {[%clk 0:03:00]}  Bg4 {[%clk 0:02:36]} 4. h3 {[%clk 0:03:00]}  Bxf3 {[%clk 0:02:34]} 5. Qxf3 {[%clk 0:03:01]}  Nf6 {[%clk 0:02:33]} 6. e5 {[%clk 0:02:58]}  Nfd7 {[%clk 0:02:31]} 7. d4 {[%clk 0:02:59]}  e6 {[%clk 0:02:30]} 8. Nd2 {[%clk 0:02:42]}  c5 {[%clk 0:02:28]} 9. c3 {[%clk 0:02:42]}  Nc6 {[%clk 0:02:28]} 10. Nb3 {[%clk 0:02:34]}  cxd4 {[%clk 0:02:27]} 11. cxd4 {[%clk 0:02:34]}  Bb4+ {[%clk 0:02:27]} 12. Bd2 {[%clk 0:02:34]}  Bxd2+ {[%clk 0:02:26]} 13. Kxd2 {[%clk 0:02:33]}  Qb6 {[%clk 0:02:21]} 14. Qc3 {[%clk 0:02:23]}  O-O {[%clk 0:02:12]} 15. f4 {[%clk 0:02:23]}  Rac8 {[%clk 0:02:01]} 16. Nc5 {[%clk 0:02:22]}  Nxc5 {[%clk 0:01:13]} 17. dxc5 {[%clk 0:02:21]}  Qc7 {[%clk 0:01:11]} 18. Rc1 {[%clk 0:02:17]}  f6 {[%clk 0:01:11]} 19. Bb5 {[%clk 0:02:12]}  fxe5 {[%clk 0:01:07]} 20. Bxc6 {[%clk 0:02:12]}  d4 {[%clk 0:01:01]} 21. Qc4 {[%clk 0:02:06]}  Qxc6 {[%clk 0:00:59]} 22. fxe5 {[%clk 0:02:00]}  Qxg2+ {[%clk 0:00:51]} 23. Qe2 {[%clk 0:02:00]}  Rf2 {[%clk 0:00:51]} 0-1


[Site "https://www.chess.com"]

[Event "Titled Tuesday Blitz April 11 Early 2023"]
[White "Mouhamad, Joachim"]
[Black "Larina, Maria"]
[WhiteFideId "656410"]
[BlackFideId "24113182"]
[WhiteElo "2125"]
[BlackElo "1848"]
[Result "1-0"]
[Round "02"]
[TimeControl "180+2"]
[Date "2023.04.11"]
[WhiteClock "0:00:21"]
[BlackClock "0:00:11"]

1. e4 {[%clk 0:03:00]}  c6 {[%clk 0:02:59]} 2. d4 {[%clk 0:03:00]}  d5 {[%clk 0:03:00]} 3. Nc3 {[%clk 0:03:00]}  dxe4 {[%clk 0:02:59]} 4. Nxe4 {[%clk 0:03:00]}  Nf6 {[%clk 0:03:00]} 5. Nxf6+ {[%clk 0:02:57]}  exf6 {[%clk 0:03:01]} 6. c3 {[%clk 0:02:57]}  Bd6 {[%clk 0:03:01]} 7. Bd3 {[%clk 0:02:57]}  O-O {[%clk 0:03:00]} 8. Ne2 {[%clk 0:02:58]}  Re8 {[%clk 0:03:01]} 9. O-O {[%clk 0:02:55]}  Nd7 {[%clk 0:02:50]} 10. Bf4 {[%clk 0:02:53]}  Nf8 {[%clk 0:02:27]} 11. Bxd6 {[%clk 0:02:53]}  Qxd6 {[%clk 0:02:28]} 12. Ng3 {[%clk 0:02:53]}  g6 {[%clk 0:02:20]} 13. Ne4 {[%clk 0:02:52]}  Qf4 {[%clk 0:02:17]} 14. Re1 {[%clk 0:02:47]}  Kg7 {[%clk 0:02:10]} 15. g3 {[%clk 0:02:00]}  Qc7 {[%clk 0:02:07]} 16. Qf3 {[%clk 0:01:57]}  Bf5 {[%clk 0:02:04]} 17. Nxf6 {[%clk 0:01:45]}  Kxf6 {[%clk 0:01:49]} 18. g4 {[%clk 0:01:43]}  Qd7 {[%clk 0:01:33]} 19. gxf5 {[%clk 0:01:42]}  gxf5 {[%clk 0:01:31]} 20. Kh1 {[%clk 0:01:25]}  Qd5 {[%clk 0:01:28]} 21. Qxd5 {[%clk 0:01:22]}  cxd5 {[%clk 0:01:27]} 22. Kg2 {[%clk 0:01:19]}  Ng6 {[%clk 0:01:18]} 23. Kg3 {[%clk 0:01:18]}  Rg8 {[%clk 0:01:13]} 24. Kf3 {[%clk 0:01:04]}  Nh4+ {[%clk 0:01:12]} 25. Ke2 {[%clk 0:01:01]}  Rg2 {[%clk 0:01:09]} 26. Rh1 {[%clk 0:00:35]}  Re8+ {[%clk 0:01:06]} 27. Kf1 {[%clk 0:00:34]}  Reg8 {[%clk 0:00:44]} 28. Be2 {[%clk 0:00:30]}  f4 {[%clk 0:00:43]} 29. Re1 {[%clk 0:00:26]}  f3 {[%clk 0:00:22]} 30. Bd1 {[%clk 0:00:26]}  R2g5 {[%clk 0:00:17]} 31. Re3 {[%clk 0:00:24]}  Rf5 {[%clk 0:00:16]} 32. Rg1 {[%clk 0:00:23]}  Ng2 {[%clk 0:00:15]} 33. Rxf3 {[%clk 0:00:20]}  Rxf3 {[%clk 0:00:10]} 34. Bxf3 {[%clk 0:00:21]}  Ne3+ {[%clk 0:00:10]} 35. fxe3 {[%clk 0:00:21]}  Rxg1+ {[%clk 0:00:10]} 36. Kxg1 {[%clk 0:00:21]}  Kf5 {[%clk 0:00:11]} 37. Bxd5 {[%clk 0:00:21]} 1-0


[Site "https://www.chess.com"]

[Event "Titled Tuesday Blitz April 11 Early 2023"]
[White "Minko, Dmitry"]
[Black "Tqebuchava, Zurab"]
[WhiteFideId "24188468"]
[BlackFideId "13601113"]
[WhiteElo "2147"]
[BlackElo "2203"]
[Result "1-0"]
[Round "02"]
[TimeControl "180+2"]
[Date "2023.04.11"]
[WhiteClock "0:00:53"]
[BlackClock "0:00:17"]

1. e4 {[%clk 0:03:00]}  d6 {[%clk 0:02:57]} 2. d4 {[%clk 0:02:59]}  g6 {[%clk 0:02:57]} 3. Nc3 {[%clk 0:02:58]}  Bg7 {[%clk 0:02:57]} 4. f4 {[%clk 0:02:58]}  c6 {[%clk 0:02:57]} 5. Nf3 {[%clk 0:02:57]}  Bg4 {[%clk 0:02:56]} 6. Be3 {[%clk 0:02:55]}  Bxf3 {[%clk 0:02:54]} 7. Qxf3 {[%clk 0:02:55]}  Nd7 {[%clk 0:02:53]} 8. O-O-O {[%clk 0:02:46]}  Qa5 {[%clk 0:02:46]} 9. e5 {[%clk 0:02:41]}  d5 {[%clk 0:02:42]} 10. Kb1 {[%clk 0:02:36]}  e6 {[%clk 0:02:41]} 11. Rg1 {[%clk 0:02:29]}  b5 {[%clk 0:02:34]} 12. g4 {[%clk 0:02:25]}  b4 {[%clk 0:02:33]} 13. Ne2 {[%clk 0:02:25]}  Ne7 {[%clk 0:02:16]} 14. Nc1 {[%clk 0:02:11]}  Qb6 {[%clk 0:02:06]} 15. Bd3 {[%clk 0:02:06]}  h5 {[%clk 0:01:57]} 16. h3 {[%clk 0:02:04]}  hxg4 {[%clk 0:01:57]} 17. hxg4 {[%clk 0:02:05]}  O-O-O {[%clk 0:01:34]} 18. f5 {[%clk 0:02:03]}  exf5 {[%clk 0:01:26]} 19. gxf5 {[%clk 0:02:04]}  Bh6 {[%clk 0:01:23]} 20. fxg6 {[%clk 0:01:38]}  Nxg6 {[%clk 0:01:09]} 21. Bxg6 {[%clk 0:01:37]}  Bxe3 {[%clk 0:01:00]} 22. Qxe3 {[%clk 0:01:35]}  fxg6 {[%clk 0:01:00]} 23. Rxg6 {[%clk 0:01:36]}  Rhe8 {[%clk 0:00:43]} 24. Nb3 {[%clk 0:01:32]}  a5 {[%clk 0:00:41]} 25. Qh6 {[%clk 0:01:15]}  Kc7 {[%clk 0:00:36]} 26. e6 {[%clk 0:00:58]}  Nf8 {[%clk 0:00:35]} 27. Rg7+ {[%clk 0:00:58]}  Kb8 {[%clk 0:00:32]} 28. e7 {[%clk 0:00:57]}  Rc8 {[%clk 0:00:19]} 29. exf8=Q {[%clk 0:00:56]}  Rxf8 {[%clk 0:00:19]} 30. Nc5 {[%clk 0:00:56]}  Rc7 {[%clk 0:00:17]} 31. Qd6 {[%clk 0:00:53]} 1-0


[Site "https://www.chess.com"]

[Event "Titled Tuesday Blitz April 11 Early 2023"]
[White "Dudzinski, Pawel"]
[Black "Kowalysko, Roman"]
[WhiteFideId "1117890"]
[BlackFideId "30918510"]
[WhiteElo "2099"]
[BlackElo "2179"]
[Result "1-0"]
[Round "02"]
[TimeControl "180+2"]
[Date "2023.04.11"]
[WhiteClock "0:02:14"]
[BlackClock "0:02:24"]

1. e4 {[%clk 0:02:56]}  c5 {[%clk 0:02:59]} 2. Nc3 {[%clk 0:02:56]}  Nc6 {[%clk 0:02:59]} 3. g3 {[%clk 0:02:57]}  g6 {[%clk 0:02:59]} 4. Bg2 {[%clk 0:02:57]}  Bg7 {[%clk 0:02:59]} 5. d3 {[%clk 0:02:58]}  d6 {[%clk 0:02:59]} 6. Be3 {[%clk 0:02:58]}  e6 {[%clk 0:02:49]} 7. Qd2 {[%clk 0:02:57]}  Rb8 {[%clk 0:02:47]} 8. f4 {[%clk 0:02:56]}  Nge7 {[%clk 0:02:46]} 9. Nf3 {[%clk 0:02:56]}  O-O {[%clk 0:02:45]} 10. d4 {[%clk 0:02:56]}  b6 {[%clk 0:02:42]} 11. O-O-O {[%clk 0:02:55]}  cxd4 {[%clk 0:02:36]} 12. Nxd4 {[%clk 0:02:54]}  Bb7 {[%clk 0:02:35]} 13. Nxc6 {[%clk 0:02:53]}  Bxc6 {[%clk 0:02:35]} 14. Qxd6 {[%clk 0:02:52]}  Qxd6 {[%clk 0:02:35]} 15. Rxd6 {[%clk 0:02:53]}  Rfd8 {[%clk 0:02:35]} 16. Rxd8+ {[%clk 0:02:42]}  Rxd8 {[%clk 0:02:35]} 17. Rd1 {[%clk 0:02:40]}  Rxd1+ {[%clk 0:02:35]} 18. Nxd1 {[%clk 0:02:31]}  f5 {[%clk 0:02:35]} 19. Nf2 {[%clk 0:02:31]}  Kf7 {[%clk 0:02:26]} 20. c3 {[%clk 0:02:30]}  e5 {[%clk 0:02:25]} 21. Kd2 {[%clk 0:02:19]}  exf4 {[%clk 0:02:25]} 22. Bxf4 {[%clk 0:02:18]}  fxe4 {[%clk 0:02:25]} 23. Bxe4 {[%clk 0:02:17]}  Nf5 {[%clk 0:02:24]} 24. Bxc6 {[%clk 0:02:14]} 1-0


[Site "https://www.chess.com"]

[Event "Titled Tuesday Blitz April 11 Early 2023"]
[White "Rangel, Daniel"]
[Black "rionelG"]
[WhiteFideId "2124475"]
[WhiteElo "2256"]
[BlackElo "2177"]
[Result "1-0"]
[Round "02"]
[TimeControl "180+2"]
[Date "2023.04.11"]
[WhiteClock "0:00:54"]
[BlackClock "0:00:11"]

1. e4 {[%clk 0:03:00]}  c5 {[%clk 0:02:58]} 2. Nf3 {[%clk 0:03:00]}  d6 {[%clk 0:02:58]} 3. d4 {[%clk 0:02:52]}  cxd4 {[%clk 0:02:59]} 4. Nxd4 {[%clk 0:02:53]}  Nf6 {[%clk 0:02:19]} 5. Nc3 {[%clk 0:02:52]}  a6 {[%clk 0:02:19]} 6. f3 {[%clk 0:02:48]}  e5 {[%clk 0:02:17]} 7. Nb3 {[%clk 0:02:48]}  Be7 {[%clk 0:02:17]} 8. Be3 {[%clk 0:02:49]}  Be6 {[%clk 0:02:17]} 9. Qd2 {[%clk 0:02:50]}  O-O {[%clk 0:02:17]} 10. O-O-O {[%clk 0:02:50]}  a5 {[%clk 0:02:17]} 11. Qf2 {[%clk 0:02:42]}  a4 {[%clk 0:02:14]} 12. Nc5 {[%clk 0:02:41]}  a3 {[%clk 0:01:59]} 13. b3 {[%clk 0:02:36]}  Qc8 {[%clk 0:01:59]} 14. Nxe6 {[%clk 0:02:34]}  fxe6 {[%clk 0:01:54]} 15. Bc4 {[%clk 0:02:32]}  Nc6 {[%clk 0:01:11]} 16. Bd2 {[%clk 0:02:22]}  Na5 {[%clk 0:01:07]} 17. Bd3 {[%clk 0:02:21]}  Qc7 {[%clk 0:01:06]} 18. Nb5 {[%clk 0:02:20]}  Qc6 {[%clk 0:01:02]} 19. Kb1 {[%clk 0:02:18]}  Rfc8 {[%clk 0:01:01]} 20. c4 {[%clk 0:02:18]}  Nd7 {[%clk 0:00:51]} 21. Qg3 {[%clk 0:02:11]}  Nc5 {[%clk 0:00:50]} 22. Bc2 {[%clk 0:02:10]}  Na4 {[%clk 0:00:25]} 23. Qh3 {[%clk 0:02:05]}  Kf7 {[%clk 0:00:18]} 24. Rhf1 {[%clk 0:01:44]}  Nxc4 {[%clk 0:00:17]} 25. bxc4 {[%clk 0:01:33]}  Qxc4 {[%clk 0:00:18]} 26. Bb3 {[%clk 0:01:29]}  Qxb5 {[%clk 0:00:15]} 27. Qxe6+ {[%clk 0:01:28]}  Ke8 {[%clk 0:00:15]} 28. Bg5 {[%clk 0:01:23]}  Qd7 {[%clk 0:00:14]} 29. Qf7+ {[%clk 0:01:11]}  Kd8 {[%clk 0:00:13]} 30. Qf8+ {[%clk 0:01:12]}  Qe8 {[%clk 0:00:13]} 31. Bxe7+ {[%clk 0:01:10]}  Kd7 {[%clk 0:00:12]} 32. Rxd6+ {[%clk 0:01:01]}  Kc7 {[%clk 0:00:12]} 33. Rc1+ {[%clk 0:00:59]}  Kb8 {[%clk 0:00:12]} 34. Rxc8+ {[%clk 0:00:54]}  Qxc8 {[%clk 0:00:13]} 35. Qxc8+ {[%clk 0:00:54]}  Kxc8 {[%clk 0:00:11]} 36. Rd8+ {[%clk 0:00:54]} 1-0


[Site "https://www.chess.com"]

[Event "Titled Tuesday Blitz April 11 Early 2023"]
[White "Shuvalov, Evgenij"]
[Black "Vargas Rodriguez, Wilver"]
[WhiteFideId "4187237"]
[BlackFideId "3509672"]
[WhiteElo "2080"]
[BlackElo "2224"]
[Result "1-0"]
[Round "02"]
[TimeControl "180+2"]
[Date "2023.04.11"]
[WhiteClock "0:00:57"]
[BlackClock "0:00:02"]

1. d4 {[%clk 0:03:00]}  Nf6 {[%clk 0:02:58]} 2. c4 {[%clk 0:03:00]}  d6 {[%clk 0:02:56]} 3. Nf3 {[%clk 0:02:59]}  Nbd7 {[%clk 0:02:55]} 4. Nc3 {[%clk 0:02:58]}  g6 {[%clk 0:02:55]} 5. e4 {[%clk 0:02:58]}  e5 {[%clk 0:02:54]} 6. g3 {[%clk 0:02:57]}  Bg7 {[%clk 0:02:53]} 7. Bg2 {[%clk 0:02:56]}  O-O {[%clk 0:02:52]} 8. O-O {[%clk 0:02:56]}  c6 {[%clk 0:02:47]} 9. h3 {[%clk 0:02:54]}  Re8 {[%clk 0:02:29]} 10. Re1 {[%clk 0:02:50]}  Qe7 {[%clk 0:02:16]} 11. d5 {[%clk 0:02:49]}  cxd5 {[%clk 0:02:14]} 12. cxd5 {[%clk 0:02:48]}  a6 {[%clk 0:02:12]} 13. a4 {[%clk 0:02:46]}  b6 {[%clk 0:02:10]} 14. Be3 {[%clk 0:02:30]}  a5 {[%clk 0:02:01]} 15. Nd2 {[%clk 0:02:17]}  Nc5 {[%clk 0:01:57]} 16. Bxc5 {[%clk 0:02:08]}  bxc5 {[%clk 0:01:56]} 17. Nb5 {[%clk 0:02:08]}  Ba6 {[%clk 0:01:53]} 18. Bf1 {[%clk 0:02:05]}  Reb8 {[%clk 0:01:46]} 19. Ra3 {[%clk 0:02:01]}  Ne8 {[%clk 0:01:37]} 20. Rb3 {[%clk 0:01:53]}  Nc7 {[%clk 0:01:24]} 21. Nxc7 {[%clk 0:01:51]}  Qxc7 {[%clk 0:01:23]} 22. Bxa6 {[%clk 0:01:47]}  Rxa6 {[%clk 0:01:14]} 23. Nc4 {[%clk 0:01:41]}  Rb4 {[%clk 0:01:09]} 24. Rxb4 {[%clk 0:01:40]}  cxb4 {[%clk 0:01:00]} 25. b3 {[%clk 0:01:40]}  Ra7 {[%clk 0:00:34]} 26. Qd2 {[%clk 0:01:35]}  Bf8 {[%clk 0:00:24]} 27. Rc1 {[%clk 0:01:34]}  Qd7 {[%clk 0:00:22]} 28. Kg2 {[%clk 0:01:29]}  Kg7 {[%clk 0:00:20]} 29. Nb6 {[%clk 0:01:23]}  Qd8 {[%clk 0:00:20]} 30. Rc6 {[%clk 0:01:14]}  Ra6 {[%clk 0:00:17]} 31. Nc4 {[%clk 0:01:12]}  Rxc6 {[%clk 0:00:16]} 32. dxc6 {[%clk 0:01:13]}  Qc7 {[%clk 0:00:14]} 33. Qd5 {[%clk 0:01:13]}  Be7 {[%clk 0:00:07]} 34. Nxa5 {[%clk 0:01:12]}  f5 {[%clk 0:00:06]} 35. f3 {[%clk 0:01:01]}  f4 {[%clk 0:00:04]} 36. g4 {[%clk 0:00:59]}  Bh4 {[%clk 0:00:02]} 37. Nc4 {[%clk 0:00:57]} 1-0


[Site "https://www.chess.com"]

[Event "Titled Tuesday Blitz April 11 Early 2023"]
[White "Chandreyee, Hajra"]
[Black "Graham, Nathaniel"]
[WhiteFideId "5056535"]
[BlackFideId "2007983"]
[WhiteElo "1725"]
[BlackElo "2136"]
[Result "1-0"]
[Round "02"]
[TimeControl "180+2"]
[Date "2023.04.11"]
[WhiteClock "0:01:13"]
[BlackClock "0:00:28"]

1. e4 {[%clk 0:03:00]}  c5 {[%clk 0:02:56]} 2. Nf3 {[%clk 0:03:00]}  e6 {[%clk 0:02:56]} 3. d4 {[%clk 0:02:59]}  cxd4 {[%clk 0:02:56]} 4. Nxd4 {[%clk 0:02:59]}  Nf6 {[%clk 0:02:57]} 5. Nc3 {[%clk 0:02:48]}  Nc6 {[%clk 0:02:57]} 6. Ndb5 {[%clk 0:02:40]}  d6 {[%clk 0:02:56]} 7. Bf4 {[%clk 0:02:32]}  e5 {[%clk 0:02:56]} 8. Bg5 {[%clk 0:02:32]}  a6 {[%clk 0:02:56]} 9. Bxf6 {[%clk 0:02:31]}  gxf6 {[%clk 0:02:55]} 10. Na3 {[%clk 0:02:27]}  f5 {[%clk 0:02:54]} 11. Bd3 {[%clk 0:02:08]}  b5 {[%clk 0:02:12]} 12. Nd5 {[%clk 0:02:05]}  Be6 {[%clk 0:02:09]} 13. c4 {[%clk 0:02:01]}  Bxd5 {[%clk 0:01:39]} 14. exd5 {[%clk 0:01:49]}  Nd4 {[%clk 0:00:52]} 15. cxb5 {[%clk 0:01:38]}  Rb8 {[%clk 0:00:31]} 16. bxa6 {[%clk 0:01:15]}  Rxb2 {[%clk 0:00:28]} 17. Qa4+ {[%clk 0:01:13]} 1-0


[Site "https://www.chess.com"]

[Event "Titled Tuesday Blitz April 11 Early 2023"]
[White "Barria Santos, Jose Guilherme"]
[Black "Maxfan2008"]
[WhiteFideId "1939300"]
[WhiteElo "2266"]
[BlackElo "2458"]
[Result "0-1"]
[Round "02"]
[TimeControl "180+2"]
[Date "2023.04.11"]
[WhiteClock "0:00:11"]
[BlackClock "0:01:05"]

1. e4 {[%clk 0:03:00]}  c5 {[%clk 0:02:56]} 2. Nf3 {[%clk 0:03:00]}  d6 {[%clk 0:02:56]} 3. d4 {[%clk 0:03:01]}  cxd4 {[%clk 0:02:57]} 4. Nxd4 {[%clk 0:03:01]}  Nf6 {[%clk 0:02:57]} 5. Nc3 {[%clk 0:03:02]}  a6 {[%clk 0:02:57]} 6. Bg5 {[%clk 0:03:02]}  e6 {[%clk 0:02:57]} 7. f4 {[%clk 0:03:02]}  Qb6 {[%clk 0:02:58]} 8. Qd2 {[%clk 0:03:02]}  Qxb2 {[%clk 0:02:57]} 9. Rb1 {[%clk 0:03:02]}  Qa3 {[%clk 0:02:57]} 10. e5 {[%clk 0:03:02]}  dxe5 {[%clk 0:02:57]} 11. fxe5 {[%clk 0:03:02]}  h6 {[%clk 0:02:57]} 12. Bh4 {[%clk 0:02:51]}  g5 {[%clk 0:02:56]} 13. Bg3 {[%clk 0:02:45]}  Nh5 {[%clk 0:02:55]} 14. Bd3 {[%clk 0:02:34]}  Nxg3 {[%clk 0:02:52]} 15. hxg3 {[%clk 0:02:34]}  Bg7 {[%clk 0:02:53]} 16. Ne4 {[%clk 0:02:18]}  Bxe5 {[%clk 0:02:27]} 17. Nf3 {[%clk 0:02:12]}  Bg7 {[%clk 0:02:25]} 18. O-O {[%clk 0:02:11]}  Nc6 {[%clk 0:02:18]} 19. Rb3 {[%clk 0:02:07]}  Qe7 {[%clk 0:02:13]} 20. g4 {[%clk 0:01:48]}  O-O {[%clk 0:02:07]} 21. Ng3 {[%clk 0:01:47]}  b5 {[%clk 0:01:57]} 22. Nh5 {[%clk 0:01:47]}  Bh8 {[%clk 0:01:55]} 23. Be4 {[%clk 0:01:41]}  Bb7 {[%clk 0:01:52]} 24. Qd3 {[%clk 0:01:39]}  Rfd8 {[%clk 0:01:34]} 25. Bh7+ {[%clk 0:01:28]}  Kf8 {[%clk 0:01:33]} 26. Qe2 {[%clk 0:01:02]}  Nd4 {[%clk 0:01:32]} 27. Nxd4 {[%clk 0:00:58]}  Bxd4+ {[%clk 0:01:33]} 28. Kh1 {[%clk 0:00:59]}  Bd5 {[%clk 0:01:24]} 29. Rd3 {[%clk 0:00:52]}  Bc4 {[%clk 0:01:20]} 30. Bg6 {[%clk 0:00:33]}  f6 {[%clk 0:01:18]} 31. Qe4 {[%clk 0:00:17]}  Bxd3 {[%clk 0:01:14]} 32. cxd3 {[%clk 0:00:17]}  Kg8 {[%clk 0:01:08]} 33. Bh7+ {[%clk 0:00:17]}  Qxh7 {[%clk 0:01:06]} 34. Nxf6+ {[%clk 0:00:11]}  Bxf6 {[%clk 0:01:05]} 0-1


[Site "https://www.chess.com"]